[Event "Turkish Cup 2024"]
[Site "Denizli"]
[Date "2024.08.02"]
[Round "6"]
[White "Metin, Enis"]
[Black "Yogurtcuoglu, Cagan"]
[Result "1-0"]
[ECO "B31"]
[WhiteElo "2142"]
[BlackElo "1713"]
[Annotator "ChessBase"]
[PlyCount "81"]
[EventDate "2024.08.01"]
[EventType "swiss"]
[EventCountry "TUR"]
[SourceTitle "playchess.com"]
[Source "ChessBase"]
[SourceQuality "1"]
[TimeControl "5400+30"]

1. e4 {[%emt 0:02:00]} c5 {[%emt 0:01:00]} 2. Nf3 {[%emt 0:00:30]} Nc6 {[%emt 0:00:30]} 3. Bb5 {[%emt 0:00:00]} g6 {[%emt 0:00:00]} 4. Bxc6 {[%emt 0:00:00]} dxc6 {[%emt 0:00:00]} 5. h3 {[%emt 0:00:00]} Bg7 {[%emt 0:00:00]} 6. d3 {[%emt 0:00:00]} Nf6 {[%emt 0:00:00]} 7. Nc3 {[%emt 0:00:00]} Nd7 {[%emt 0:00:30]} 8. Be3 {[%emt 0:00:00]} e5 {[%emt 0:00:30]} 9. Qd2 {[%emt 0:00:30]} Qe7 {[%emt 0:00:00]} 10. Bh6 {[%emt 0:00:30]} f6 {[%emt 0:00:00]} 11. Ne2 {[%emt 0:04:30]} Nf8 {[%emt 0:04:30]} 12. Nh2 {[%emt 0:02:30]} Ne6 {[%emt 0:00:30]} 13. Bxg7 {[%emt 0:00:30]} Qxg7 {[%emt 0:00:30]} 14. f4 {[%emt 0:00:00]} exf4 {[%emt 0:06:30]} 15. Nxf4 {[%emt 0:00:00]} O-O {[%emt 0:00:00]} 16. O-O Bd7 17. Rae1 Rae8 {[%emt 0:04:30]} 18. Nf3 Qe7 {[%emt 0:07:30]} 19. Ne2 {[%emt 0:09:00]} Qd6 {[%emt 0:01:30]} 20. Qc3 {[%emt 0:01:30]} b6 {[%emt 0:02:30]} 21. a4 {[%emt 0:02:30]} Bc8 {[%emt 0:04:30]} 22. a5 {[%emt 0:01:30]} b5 {[%emt 0:02:30]} 23. Rf2 {[%emt 0:03:30]} Rd8 {[%emt 0:02:30]} 24. Ref1 {[%emt 0:00:30]} Nd4 {[%emt 0:00:30]} 25. Nexd4 {[%emt 0:03:30]} cxd4 {[%emt 0:00:00]} 26. Qd2 {[%emt 0:00:00]} Kg7 {[%emt 0:01:00]} 27. Re2 {[%emt 0:01:00]} Rde8 {[%emt 0:00:30]} 28. b4 {[%emt 0:01:30]} c5 {[%emt 0:10:30]} 29. bxc5 {[%emt 0:04:30]} Qxc5 {[%emt 0:00:30]} 30. Rb1 {[%emt 0:00:30]} Bd7 {[%emt 0:01:30]} 31. Qb4 {[%emt 0:00:30]} Rc8 {[%emt 0:00:30]} 32. Nxd4 {[%emt 0:02:30]} Qxb4 {[%emt 0:00:30]} 33. Rxb4 {[%emt 0:00:30]} Rc5 {[%emt 0:00:00]} 34. Kf2 {[%emt 0:01:30]} Rfc8 {[%emt 0:00:00]} 35. Ke3 {[%emt 0:01:30]} a6 {[%emt 0:00:30]} 36. Re1 {[%emt 0:00:30]} Rc3 {[%emt 0:00:00]} 37. Rb3 {[%emt 0:00:30]} Rxb3 {[%emt 0:01:00]} 38. cxb3 {[%emt 0:00:00]} b4 {[%emt 0:00:30]} 39. Kd2 {[%emt 0:00:00]} Rd8 {[%emt 0:00:30]} 40. Rc1 {[%emt 0:00:30]} Bxh3 {[%emt 0:00:30]} 41. Nc6 {[%emt 0:00:00]} 1-0

[Event "Turkish Cup 2024"]
[Site "Denizli"]
[Date "2024.08.02"]
[Round "6"]
[White "Baylav, Can"]
[Black "Yildiz, Talat"]
[Result "1/2-1/2"]
[ECO "B35"]
[WhiteElo "2086"]
[BlackElo "1956"]
[Annotator "ChessBase"]
[PlyCount "105"]
[EventDate "2024.08.01"]
[EventType "swiss"]
[EventCountry "TUR"]
[SourceTitle "playchess.com"]
[Source "ChessBase"]
[SourceQuality "1"]
[TimeControl "5400+30"]

1. e4 {[%emt 0:01:00]} c5 {[%emt 0:02:00]} 2. Nf3 {[%emt 0:00:30]} Nc6 {[%emt 0:00:30]} 3. d4 {[%emt 0:01:30]} cxd4 {[%emt 0:00:30]} 4. Nxd4 {[%emt 0:00:30]} g6 {[%emt 0:00:00]} 5. Nc3 {[%emt 0:00:30]} Bg7 {[%emt 0:00:00]} 6. Be3 {[%emt 0:00:00]} Nf6 {[%emt 0:00:00]} 7. Bc4 {[%emt 0:01:00]} O-O {[%emt 0:00:00]} 8. Bb3 {[%emt 0:01:30]} Re8 {[%emt 0:00:30]} 9. h3 {[%emt 0:01:30]} d6 {[%emt 0:07:30]} 10. O-O {[%emt 0:00:30]} Na5 {[%emt 0:03:30]} 11. Re1 {[%emt 0:00:00]} b6 {[%emt 0:06:30]} 12. Qd3 {[%emt 0:02:00]} Nxb3 {[%emt 0:06:30]} 13. axb3 {[%emt 0:00:30]} Bb7 {[%emt 0:00:30]} 14. Bg5 {[%emt 0:04:30]} a6 {[%emt 0:06:30]} 15. b4 {[%emt 0:01:30]} b5 {[%emt 0:08:30]} 16. Nb3 {[%emt 0:04:30]} Qc7 {[%emt 0:00:30]} 17. Na5 {[%emt 0:01:30]} Rac8 {[%emt 0:01:30]} 18. Nxb7 {[%emt 0:04:30]} Qxb7 {[%emt 0:02:30]} 19. Ra2 {[%emt 0:00:30]} Rc4 {[%emt 0:04:30]} 20. Bxf6 {[%emt 0:00:30]} Bxf6 {[%emt 0:01:30]} 21. Nd5 {[%emt 0:00:00]} Bg7 {[%emt 0:01:30]} 22. c3 {[%emt 0:00:00]} Rcc8 {[%emt 0:13:30]} 23. Rea1 {[%emt 0:04:30]} Ra8 {[%emt 0:01:30]} 24. Ne3 {[%emt 0:06:30]} Rec8 {[%emt 0:04:30]} 25. Ra5 {[%emt 0:08:30]} Rc6 {[%emt 0:06:30]} 26. Qd5 {[%emt 0:05:30]} e6 {[%emt 0:01:30]} 27. Qd3 {[%emt 0:03:30]} Rd8 {[%emt 0:00:30]} 28. f4 {[%emt 0:03:30]} Bh6 {[%emt 0:04:21]} 29. Rf1 {[%emt 0:01:30]} d5 {[%emt 0:02:30]} 30. Kh1 {[%emt 0:06:30]} Qd7 {[%emt 0:03:11]} 31. e5 {[%emt 0:17:30]} d4 {[%emt 0:05:45]} 32. Ng4 {[%emt 0:00:30]} Kg7 {[%emt 0:03:01]} 33. Nf6 {[%emt 0:04:53]} Qc8 {[%emt 0:00:01]} 34. cxd4 {[%emt 0:03:24]} Rc1 {[%emt 0:00:01]} 35. Ra1 {[%emt 0:00:02]} Rxa1 {[%emt 0:00:20]} 36. Rxa1 {[%emt 0:00:30]} Bxf4 {[%emt 0:00:30]} 37. Qe4 {[%emt 0:01:02]} Bg5 {[%emt 0:00:30]} 38. Rf1 {[%emt 0:01:58]} Qa8 {[%emt 0:05:20]} 39. Qg4 {[%emt 0:04:35]} h6 {[%emt 0:00:01]} 40. Ne4 {[%emt 0:02:43]} Be7 {[%emt 0:00:27]} 41. Qf4 {[%emt 0:01:34]} Rf8 {[%emt 0:00:07]} 42. h4 {[%emt 0:00:39]} Qd8 {[%emt 0:00:25]} 43. Nc5 {[%emt 0:01:37]} Bxh4 {[%emt 0:00:33]} 44. Nxa6 {[%emt 0:00:42]} Bg5 {[%emt 0:00:18]} 45. Qe4 {[%emt 0:00:24]} Qa8 {[%emt 0:00:37]} 46. Qxa8 {[%emt 0:01:30]} Rxa8 {[%emt 0:00:30]} 47. Nc7 {[%emt 0:00:00]} Ra2 {[%emt 0:01:13]} 48. Nxb5 {[%emt 0:00:27]} Rxb2 {[%emt 0:00:30]} 49. Nd6 {[%emt 0:00:00]} Rxb4 {[%emt 0:00:00]} 50. Rxf7+ {[%emt 0:00:26]} Kg8 {[%emt 0:00:00]} 51. Rc7 {[%emt 0:02:27]} Rxd4 {[%emt 0:00:55]} 52. Rc8+ {[%emt 0:00:07]} Kg7 {[%emt 0:00:27]} 53. Rc7+ {[%emt 0:00:18]} 1/2-1/2

[Event "Turkish Cup 2024"]
[Site "Denizli"]
[Date "2024.08.02"]
[Round "6"]
[White "Celebi, Mehmet Alper"]
[Black "Saygin, Semir"]
[Result "1-0"]
[ECO "B23"]
[WhiteElo "1998"]
[BlackElo "1885"]
[Annotator "ChessBase"]
[PlyCount "97"]
[EventDate "2024.08.01"]
[EventType "swiss"]
[EventCountry "TUR"]
[SourceTitle "playchess.com"]
[Source "ChessBase"]
[SourceQuality "1"]
[TimeControl "5400+30"]

1. e4 {[%emt 0:01:00]} c5 {[%emt 0:01:00]} 2. Nc3 {[%emt 0:00:00]} g6 {[%emt 0:00:30]} 3. d4 {[%emt 0:00:00]} cxd4 {[%emt 0:01:30]} 4. Qxd4 {[%emt 0:00:00]} Nf6 {[%emt 0:00:30]} 5. Bb5 {[%emt 0:00:00]} Bg7 {[%emt 0:06:30]} 6. e5 {[%emt 0:00:30]} Ng8 {[%emt 0:00:00]} 7. Nf3 {[%emt 0:00:30]} Nc6 {[%emt 0:01:00]} 8. Qe4 {[%emt 0:04:30]} a6 {[%emt 0:02:30]} 9. Bxc6 {[%emt 0:00:30]} dxc6 {[%emt 0:00:30]} 10. Be3 {[%emt 0:00:30]} Qa5 {[%emt 0:09:30]} 11. O-O-O {[%emt 0:02:30]} Bf5 {[%emt 0:02:30]} 12. Qh4 {[%emt 0:00:30]} b5 {[%emt 0:02:30]} 13. Nd4 {[%emt 0:00:30]} Bd7 {[%emt 0:03:30]} 14. Nb3 {[%emt 0:00:30]} Qc7 {[%emt 0:00:30]} 15. Nc5 {[%emt 0:00:30]} Bf5 {[%emt 0:05:30]} 16. g4 {[%emt 0:00:30]} Bc8 {[%emt 0:06:30]} 17. f4 {[%emt 0:00:00]} h5 {[%emt 0:01:30]} 18. g5 {[%emt 0:03:00]} Bf5 {[%emt 0:07:30]} 19. Rd2 {[%emt 0:03:30]} e6 {[%emt 0:05:30]} 20. Rd7 {[%emt 0:01:30]} Qc8 {[%emt 0:03:30]} 21. Rhd1 {[%emt 0:14:30]} Ne7 {[%emt 0:00:30]} 22. N3e4 {[%emt 0:08:30]} Bxe4 {[%emt 0:00:30]} 23. Nxe4 {[%emt 0:00:30]} Nf5 {[%emt 0:01:30]} 24. Qf2 {[%emt 0:01:30]} O-O {[%emt 0:04:30]} 25. Bb6 {[%emt 0:00:30]} a5 {[%emt 0:03:30]} 26. Nc5 {[%emt 0:00:30]} Qe8 {[%emt 0:02:30]} 27. Qf3 {[%emt 0:00:30]} Ne7 {[%emt 0:07:30]} 28. Rd8 {[%emt 0:01:30]} Rxd8 {[%emt 0:00:30]} 29. Rxd8 {[%emt 0:00:30]} Qxd8 {[%emt 0:00:00]} 30. Bxd8 {[%emt 0:00:00]} Rxd8 {[%emt 0:00:00]} 31. Qa3 {[%emt 0:01:00]} Ra8 {[%emt 0:02:30]} 32. c4 {[%emt 0:01:30]} Nf5 {[%emt 0:01:22]} 33. Qf3 {[%emt 0:01:30]} Rc8 {[%emt 0:00:39]} 34. Qd3 {[%emt 0:00:30]} Bf8 {[%emt 0:01:24]} 35. Nd7 {[%emt 0:00:30]} Be7 {[%emt 0:01:03]} 36. Nf6+ {[%emt 0:00:30]} Kf8 {[%emt 0:00:22]} 37. Qd7 {[%emt 0:02:30]} Rd8 {[%emt 0:00:50]} 38. Qxc6 {[%emt 0:00:00]} bxc4 {[%emt 0:03:11]} 39. Nd7+ {[%emt 0:03:00]} Kg7 {[%emt 0:00:42]} 40. Nf6 {[%emt 0:03:30]} Bb4 {[%emt 0:00:59]} 41. Qc7 {[%emt 0:06:30]} Rd4 {[%emt 0:05:52]} 42. a3 {[%emt 0:02:30]} Ne3 {[%emt 0:00:32]} 43. Kb1 {[%emt 0:00:30]} Rd1+ {[%emt 0:04:36]} 44. Ka2 {[%emt 0:00:00]} Bf8 {[%emt 0:02:39]} 45. Ne8+ {[%emt 0:00:00]} Kg8 {[%emt 0:00:00]} 46. Nd6 {[%emt 0:00:30]} Bxd6 {[%emt 0:01:15]} 47. exd6 {[%emt 0:00:00]} Rd2 {[%emt 0:01:58]} 48. d7 {[%emt 0:01:00]} c3 {[%emt 0:00:21]} 49. d8=Q+ {[%emt 0:00:00]} 1-0

[Event "Turkish Cup 2024"]
[Site "Denizli"]
[Date "2024.08.02"]
[Round "6"]
[White "Cakir, Mert"]
[Black "Ilgaz, Yusuf Kerem"]
[Result "1-0"]
[ECO "C55"]
[WhiteElo "1990"]
[BlackElo "2006"]
[Annotator "ChessBase"]
[PlyCount "47"]
[EventDate "2024.08.01"]
[EventType "swiss"]
[EventCountry "TUR"]
[SourceTitle "playchess.com"]
[Source "ChessBase"]
[SourceQuality "1"]
[TimeControl "5400+30"]

1. e4 {[%emt 0:01:00]} e5 {[%emt 0:01:00]} 2. Nf3 {[%emt 0:00:00]} Nc6 {[%emt 0:00:30]} 3. Bc4 {[%emt 0:00:00]} Nf6 {[%emt 0:00:30]} 4. d3 {[%emt 0:00:30]} Be7 {[%emt 0:00:00]} 5. Nbd2 {[%emt 0:00:30]} O-O {[%emt 0:01:00]} 6. O-O {[%emt 0:00:30]} d5 {[%emt 0:00:30]} 7. exd5 {[%emt 0:00:30]} Nxd5 {[%emt 0:00:30]} 8. Re1 {[%emt 0:00:00]} Bg4 {[%emt 0:00:30]} 9. h3 {[%emt 0:00:00]} Bh5 {[%emt 0:00:30]} 10. Ne4 {[%emt 0:02:30]} Nb6 {[%emt 0:06:30]} 11. Ng3 {[%emt 0:02:30]} Bg6 {[%emt 0:03:30]} 12. Bb3 {[%emt 0:03:30]} Kh8 {[%emt 0:12:30]} 13. Nxe5 {[%emt 0:08:30]} Nxe5 {[%emt 0:00:30]} 14. Rxe5 {[%emt 0:00:00]} Bd6 {[%emt 0:00:30]} 15. Re1 {[%emt 0:00:00]} f5 {[%emt 0:01:30]} 16. f4 {[%emt 0:11:30]} Qh4 {[%emt 0:04:30]} 17. Qf3 {[%emt 0:00:30]} Be8 {[%emt 0:05:30]} 18. Be3 {[%emt 0:03:30]} Bc6 {[%emt 0:01:30]} 19. Qf2 {[%emt 0:00:00]} Rae8 {[%emt 0:19:30]} 20. Bd4 {[%emt 0:03:00]} Qh6 {[%emt 0:08:30]} 21. Rxe8 {[%emt 0:01:30]} Bxe8 {[%emt 0:00:30]} 22. Re1 {[%emt 0:00:00]} Bd7 {[%emt 0:03:30]} 23. Qe2 {[%emt 0:06:00]} Rd8 {[%emt 0:05:30]} 24. Nxf5 {[%emt 0:08:30]} 1-0

[Event "Turkish Cup 2024"]
[Site "Denizli"]
[Date "2024.08.02"]
[Round "6"]
[White "Dargali, Hakan"]
[Black "Ceylan, Arda"]
[Result "1/2-1/2"]
[ECO "D24"]
[WhiteElo "1973"]
[BlackElo "1836"]
[Annotator "ChessBase"]
[PlyCount "108"]
[EventDate "2024.08.01"]
[EventType "swiss"]
[EventCountry "TUR"]
[SourceTitle "playchess.com"]
[Source "ChessBase"]
[SourceQuality "1"]
[TimeControl "5400+30"]

1. d4 {[%emt 0:02:00]} Nf6 {[%emt 0:02:00]} 2. c4 {[%emt 0:00:30]} e6 {[%emt 0:00:30]} 3. Nf3 {[%emt 0:00:30]} d5 {[%emt 0:00:30]} 4. Nc3 {[%emt 0:00:00]} dxc4 {[%emt 0:00:00]} 5. e3 {[%emt 0:00:00]} a6 {[%emt 0:00:00]} 6. a4 {[%emt 0:00:00]} b6 {[%emt 0:00:00]} 7. Bxc4 {[%emt 0:00:00]} Bb7 {[%emt 0:00:00]} 8. O-O {[%emt 0:00:30]} Nbd7 {[%emt 0:00:00]} 9. d5 {[%emt 0:00:30]} exd5 {[%emt 0:05:00]} 10. Nxd5 {[%emt 0:00:30]} Bd6 {[%emt 0:05:30]} 11. e4 {[%emt 0:01:30]} Nxd5 {[%emt 0:40:30]} 12. Bxd5 {[%emt 0:00:30]} Bxd5 {[%emt 0:00:30]} 13. Qxd5 {[%emt 0:00:30]} O-O {[%emt 0:00:30]} 14. e5 {[%emt 0:22:30]} Be7 {[%emt 0:00:30]} 15. Qc4 {[%emt 0:01:30]} Nc5 {[%emt 0:01:30]} 16. Be3 {[%emt 0:03:30]} Qd3 {[%emt 0:01:30]} 17. Qg4 {[%emt 0:00:00]} Qg6 {[%emt 0:09:30]} 18. Qb4 {[%emt 0:04:00]} a5 {[%emt 0:03:30]} 19. Qb5 {[%emt 0:01:30]} Qd3 {[%emt 0:01:30]} 20. Qc6 {[%emt 0:02:30]} Qd7 {[%emt 0:02:30]} 21. Nd4 {[%emt 0:02:30]} Qxc6 {[%emt 0:01:30]} 22. Nxc6 {[%emt 0:01:30]} Rfe8 {[%emt 0:00:30]} 23. Rfd1 {[%emt 0:00:00]} Nb3 {[%emt 0:05:02]} 24. Rab1 {[%emt 0:01:00]} Bc5 {[%emt 0:00:45]} 25. Rd7 {[%emt 0:00:30]} Bxe3 {[%emt 0:00:30]} 26. fxe3 {[%emt 0:00:30]} Nc5 {[%emt 0:00:30]} 27. Rxc7 {[%emt 0:00:30]} Nxa4 {[%emt 0:00:30]} 28. Rf1 {[%emt 0:00:00]} Rf8 {[%emt 0:07:35]} 29. Rf2 {[%emt 0:00:00]} Nc5 {[%emt 0:00:50]} 30. g4 {[%emt 0:00:30]} h6 {[%emt 0:02:07]} 31. h4 {[%emt 0:00:30]} Rae8 {[%emt 0:02:30]} 32. Rd2 {[%emt 0:01:30]} Re6 {[%emt 0:02:37]} 33. Rd6 {[%emt 0:01:30]} Ne4 {[%emt 0:04:22]} 34. Rxe6 {[%emt 0:00:30]} fxe6 {[%emt 0:00:08]} 35. Nd4 {[%emt 0:00:30]} Nc5 {[%emt 0:01:21]} 36. Rc6 {[%emt 0:00:00]} Nd3 {[%emt 0:01:05]} 37. Rxe6 {[%emt 0:07:00]} Nxb2 {[%emt 0:00:15]} 38. Rxb6 {[%emt 0:01:30]} Nc4 {[%emt 0:00:08]} 39. Rb5 {[%emt 0:02:30]} Nxe3 {[%emt 0:00:21]} 40. e6 {[%emt 0:00:30]} Nxg4 {[%emt 0:01:49]} 41. Rxa5 {[%emt 0:00:00]} Re8 {[%emt 0:00:20]} 42. Kg2 {[%emt 0:00:00]} g6 {[%emt 0:00:20]} 43. Ra7 {[%emt 0:01:30]} Ne3+ {[%emt 0:00:27]} 44. Kf3 {[%emt 0:01:30]} Nf5 {[%emt 0:00:39]} 45. Nxf5 {[%emt 0:00:30]} gxf5 {[%emt 0:00:00]} 46. Ra6 {[%emt 0:00:30]} Kg7 {[%emt 0:00:24]} 47. Kf4 {[%emt 0:00:00]} Kf6 {[%emt 0:01:01]} 48. e7+ {[%emt 0:00:00]} Kxe7 {[%emt 0:00:41]} 49. Kxf5 {[%emt 0:00:30]} Kf7 {[%emt 0:00:08]} 50. Rxh6 {[%emt 0:00:30]} Kg7 {[%emt 0:00:30]} 51. Rd6 {[%emt 0:00:00]} Re7 {[%emt 0:00:10]} 52. Rd5 {[%emt 0:01:00]} Ra7 {[%emt 0:00:59]} 53. Kg5 {[%emt 0:00:00]} Rb7 {[%emt 0:00:15]} 54. h5 {[%emt 0:00:00]} Ra7 {[%emt 0:00:00]} 1/2-1/2

[Event "Turkish Cup 2024"]
[Site "Denizli"]
[Date "2024.08.02"]
[Round "6"]
[White "Cicek, Bilal Emre"]
[Black "Sahin, Ata Sarp"]
[Result "1-0"]
[ECO "A14"]
[WhiteElo "1963"]
[BlackElo "1996"]
[Annotator "ChessBase"]
[PlyCount "51"]
[EventDate "2024.08.01"]
[EventType "swiss"]
[EventCountry "TUR"]
[SourceTitle "playchess.com"]
[Source "ChessBase"]
[SourceQuality "1"]
[TimeControl "5400+30"]

1. c4 {[%emt 0:01:00]} e6 {[%emt 0:03:00]} 2. g3 {[%emt 0:01:30]} Nf6 {[%emt 0:00:30]} 3. Bg2 {[%emt 0:00:30]} d5 {[%emt 0:00:30]} 4. Nf3 {[%emt 0:00:00]} Be7 {[%emt 0:00:00]} 5. O-O {[%emt 0:00:00]} O-O {[%emt 0:00:00]} 6. b3 {[%emt 0:00:00]} c5 {[%emt 0:00:30]} 7. Bb2 {[%emt 0:00:00]} d4 {[%emt 0:00:30]} 8. e3 {[%emt 0:00:30]} Nc6 {[%emt 0:00:30]} 9. exd4 {[%emt 0:00:30]} cxd4 {[%emt 0:00:00]} 10. Re1 {[%emt 0:00:00]} Re8 {[%emt 0:00:00]} 11. d3 {[%emt 0:00:00]} Bf8 {[%emt 0:00:30]} 12. a3 {[%emt 0:13:30]} a5 {[%emt 0:00:00]} 13. Ne5 {[%emt 0:00:30]} Bd7 {[%emt 0:04:00]} 14. f4 {[%emt 0:02:30]} g6 {[%emt 0:06:30]} 15. Nd2 {[%emt 0:01:30]} Bc5 {[%emt 0:04:30]} 16. Ndf3 {[%emt 0:04:30]} h5 {[%emt 0:03:30]} 17. h3 {[%emt 0:02:30]} Rc8 {[%emt 0:03:30]} 18. Qd2 {[%emt 0:02:30]} Qb6 {[%emt 0:02:30]} 19. Rab1 {[%emt 0:18:30]} Ne7 {[%emt 0:03:30]} 20. g4 {[%emt 0:06:30]} Bc6 {[%emt 0:00:30]} 21. Nxf7 {[%emt 0:10:30]} Kxf7 {[%emt 0:14:30]} 22. Ng5+ {[%emt 0:00:00]} Kg7 {[%emt 0:00:30]} 23. Nxe6+ {[%emt 0:01:00]} Kh7 {[%emt 0:01:30]} 24. f5 {[%emt 0:02:30]} Bxg2 {[%emt 0:01:30]} 25. Qg5 {[%emt 0:03:30]} Nfg8 {[%emt 0:13:30]} 26. gxh5 {[%emt 0:01:30]} 1-0

[Event "Turkish Cup 2024"]
[Site "Denizli"]
[Date "2024.08.02"]
[Round "6"]
[White "Kaynak, Deniz Can"]
[Black "Sarbak, Omer"]
[Result "1-0"]
[ECO "B34"]
[WhiteElo "1931"]
[BlackElo "1771"]
[Annotator "ChessBase"]
[PlyCount "71"]
[EventDate "2024.08.01"]
[EventType "swiss"]
[EventCountry "TUR"]
[SourceTitle "playchess.com"]
[Source "ChessBase"]
[SourceQuality "1"]
[TimeControl "5400+30"]

1. e4 {[%emt 0:02:00]} c5 {[%emt 0:01:00]} 2. Nf3 {[%emt 0:00:30]} Nc6 {[%emt 0:00:30]} 3. d4 {[%emt 0:00:00]} cxd4 {[%emt 0:00:00]} 4. Nxd4 {[%emt 0:00:00]} g6 {[%emt 0:00:00]} 5. Nc3 {[%emt 0:00:30]} Bg7 {[%emt 0:00:30]} 6. Be3 {[%emt 0:00:30]} Nf6 {[%emt 0:00:30]} 7. Nb3 {[%emt 0:00:30]} d6 {[%emt 0:00:30]} 8. f3 {[%emt 0:00:00]} Bd7 {[%emt 0:07:30]} 9. Qd2 {[%emt 0:00:00]} Rc8 {[%emt 0:00:30]} 10. O-O-O {[%emt 0:05:30]} O-O {[%emt 0:04:30]} 11. h4 {[%emt 0:04:30]} h5 {[%emt 0:07:30]} 12. g4 {[%emt 0:06:30]} hxg4 {[%emt 0:03:30]} 13. h5 {[%emt 0:01:30]} gxh5 {[%emt 0:01:30]} 14. Bh6 {[%emt 0:01:30]} Ne5 {[%emt 0:15:30]} 15. Qg5 {[%emt 0:06:30]} Ng6 {[%emt 0:00:30]} 16. e5 {[%emt 0:12:30]} dxe5 {[%emt 0:32:30]} 17. fxg4 {[%emt 0:04:30]} Nxg4 {[%emt 0:00:30]} 18. Bxg7 {[%emt 0:02:30]} Kxg7 {[%emt 0:00:30]} 19. Bd3 {[%emt 0:10:30]} f5 {[%emt 0:06:49]} 20. Bb5 {[%emt 0:09:30]} Rc7 {[%emt 0:05:30]} 21. Rxh5 {[%emt 0:11:58]} e6 {[%emt 0:04:44]} 22. Qd2 {[%emt 0:01:20]} Rf7 {[%emt 0:00:50]} 23. Rdh1 {[%emt 0:04:04]} Qg8 {[%emt 0:00:38]} 24. Be2 {[%emt 0:01:54]} Bc6 {[%emt 0:02:55]} 25. Rg1 {[%emt 0:09:03]} Rcd7 {[%emt 0:00:45]} 26. Qe1 {[%emt 0:01:04]} Kf8 {[%emt 0:02:08]} 27. Nc5 {[%emt 0:00:51]} Rde7 {[%emt 0:01:09]} 28. Bc4 {[%emt 0:01:23]} Nf4 {[%emt 0:00:12]} 29. Rh4 {[%emt 0:01:15]} b6 {[%emt 0:00:08]} 30. Nd3 {[%emt 0:01:38]} Ng2 {[%emt 0:00:28]} 31. Rxg4 {[%emt 0:00:37]} Qxg4 {[%emt 0:01:05]} 32. Qxe5 {[%emt 0:00:02]} Qg5+ {[%emt 0:01:03]} 33. Kb1 {[%emt 0:00:08]} Kg8 {[%emt 0:00:31]} 34. Bxe6 {[%emt 0:01:09]} Qf6 {[%emt 0:00:35]} 35. Qxf6 {[%emt 0:00:10]} Rxe6 {[%emt 0:00:42]} 36. Qxe6 {[%emt 0:00:02]} 1-0

[Event "Turkish Cup 2024"]
[Site "Denizli"]
[Date "2024.08.02"]
[Round "6"]
[White "Yardimci, Can"]
[Black "Gulbas, Isa"]
[Result "1-0"]
[ECO "B15"]
[WhiteElo "1930"]
[BlackElo "1749"]
[Annotator "ChessBase"]
[PlyCount "61"]
[EventDate "2024.08.01"]
[EventType "swiss"]
[EventCountry "TUR"]
[SourceTitle "playchess.com"]
[Source "ChessBase"]
[SourceQuality "1"]
[TimeControl "5400+30"]

1. e4 {[%emt 0:01:00]} c6 {[%emt 0:06:00]} 2. d4 {[%emt 0:00:30]} d5 {[%emt 0:00:30]} 3. Nc3 {[%emt 0:00:30]} dxe4 {[%emt 0:00:00]} 4. Nxe4 {[%emt 0:00:00]} Nf6 {[%emt 0:00:00]} 5. Nxf6+ {[%emt 0:00:00]} exf6 {[%emt 0:00:00]} 6. c3 {[%emt 0:00:30]} Bd6 {[%emt 0:00:00]} 7. Bd3 {[%emt 0:00:00]} O-O {[%emt 0:00:30]} 8. Ne2 {[%emt 0:00:00]} Qc7 {[%emt 0:00:00]} 9. h3 {[%emt 0:00:30]} Nd7 {[%emt 0:02:00]} 10. O-O {[%emt 0:00:30]} c5 {[%emt 0:04:30]} 11. c4 {[%emt 0:05:30]} cxd4 {[%emt 0:05:30]} 12. Nxd4 {[%emt 0:00:00]} Bc5 {[%emt 0:00:30]} 13. Nb5 {[%emt 0:06:00]} Qc6 {[%emt 0:08:30]} 14. Qc2 {[%emt 0:03:30]} Re8 {[%emt 0:12:30]} 15. Bxh7+ {[%emt 0:01:30]} Kh8 {[%emt 0:01:30]} 16. Bf4 {[%emt 0:04:30]} Ne5 {[%emt 0:02:30]} 17. Be4 {[%emt 0:02:30]} Qb6 {[%emt 0:00:30]} 18. Nc3 {[%emt 0:08:30]} f5 {[%emt 0:24:30]} 19. Bxf5 {[%emt 0:08:30]} Qf6 {[%emt 0:00:30]} 20. Bxc8 {[%emt 0:07:30]} Qxf4 {[%emt 0:00:30]} 21. Bxb7 {[%emt 0:05:30]} Rab8 {[%emt 0:00:00]} 22. Bd5 {[%emt 0:02:30]} Rb6 {[%emt 0:05:00]} 23. Qc1 {[%emt 0:07:30]} Qg3 {[%emt 0:11:27]} 24. Na4 {[%emt 0:05:30]} Rg6 {[%emt 0:02:00]} 25. Qc3 {[%emt 0:02:30]} Bxf2+ {[%emt 0:03:24]} 26. Rxf2 {[%emt 0:06:30]} Nd3 {[%emt 0:00:08]} 27. Raf1 {[%emt 0:03:03]} Re3 {[%emt 0:02:35]} 28. Qd2 {[%emt 0:01:43]} Nxf2 {[%emt 0:08:19]} 29. Qxf2 {[%emt 0:00:13]} Qxh3 {[%emt 0:00:37]} 30. Qxf7 {[%emt 0:01:53]} Reg3 {[%emt 0:00:30]} 31. Qe6 {[%emt 0:00:30]} 1-0

[Event "Turkish Cup 2024"]
[Site "Denizli"]
[Date "2024.08.02"]
[Round "6"]
[White "Tirpan, Ceren"]
[Black "Yilmaz, Atakan"]
[Result "1-0"]
[ECO "A13"]
[WhiteElo "1926"]
[BlackElo "1715"]
[Annotator "ChessBase"]
[PlyCount "61"]
[EventDate "2024.08.01"]
[EventType "swiss"]
[EventCountry "TUR"]
[SourceTitle "playchess.com"]
[Source "ChessBase"]
[SourceQuality "1"]
[TimeControl "5400+30"]

1. c4 {[%emt 0:01:00]} e6 {[%emt 0:01:00]} 2. Nf3 {[%emt 0:00:00]} Nf6 {[%emt 0:01:30]} 3. g3 {[%emt 0:00:00]} d5 {[%emt 0:00:30]} 4. Bg2 {[%emt 0:00:30]} d4 {[%emt 0:00:00]} 5. O-O {[%emt 0:00:30]} c5 {[%emt 0:04:00]} 6. e3 {[%emt 0:00:30]} Nc6 {[%emt 0:00:30]} 7. exd4 {[%emt 0:00:30]} cxd4 {[%emt 0:00:30]} 8. d3 {[%emt 0:00:30]} Nd7 {[%emt 0:01:30]} 9. Na3 {[%emt 0:05:30]} Be7 {[%emt 0:02:30]} 10. Nc2 {[%emt 0:02:30]} e5 {[%emt 0:01:30]} 11. Re1 {[%emt 0:07:30]} O-O {[%emt 0:00:30]} 12. b4 {[%emt 0:05:30]} Qc7 {[%emt 0:14:30]} 13. b5 {[%emt 0:01:30]} Nd8 {[%emt 0:01:30]} 14. Nfxd4 {[%emt 0:04:30]} exd4 {[%emt 0:02:30]} 15. Rxe7 {[%emt 0:00:30]} Ne6 {[%emt 0:00:30]} 16. Ba3 {[%emt 0:00:00]} Rd8 {[%emt 0:01:30]} 17. Qh5 {[%emt 0:05:00]} g6 {[%emt 0:01:30]} 18. Qf3 {[%emt 0:00:30]} Rf8 {[%emt 0:01:30]} 19. Rxe6 {[%emt 0:03:30]} fxe6 {[%emt 0:00:30]} 20. Bxf8 {[%emt 0:00:00]} Nxf8 {[%emt 0:00:30]} 21. Nxd4 {[%emt 0:00:00]} e5 {[%emt 0:00:00]} 22. Qd5+ {[%emt 0:01:30]} Kg7 {[%emt 0:00:00]} 23. Nf3 {[%emt 0:00:00]} Be6 {[%emt 0:06:30]} 24. Qxe5+ {[%emt 0:01:00]} Qxe5 {[%emt 0:00:30]} 25. Nxe5 {[%emt 0:00:00]} Kf6 {[%emt 0:00:30]} 26. f4 {[%emt 0:00:00]} Rb8 {[%emt 0:00:30]} 27. a4 {[%emt 0:00:00]} Nd7 {[%emt 0:01:30]} 28. d4 {[%emt 0:00:00]} Nxe5 {[%emt 0:00:30]} 29. fxe5+ {[%emt 0:00:30]} Ke7 {[%emt 0:00:30]} 30. d5 {[%emt 0:00:30]} Bf5 {[%emt 0:00:00]} 31. c5 {[%emt 0:00:00]} 1-0

[Event "Turkish Cup 2024"]
[Site "Denizli"]
[Date "2024.08.02"]
[Round "6"]
[White "Dirikolu, Deniz"]
[Black "Ozdemir, Serhan Berat"]
[Result "0-1"]
[ECO "B48"]
[WhiteElo "1911"]
[BlackElo "2194"]
[Annotator "ChessBase"]
[PlyCount "36"]
[EventDate "2024.08.01"]
[EventType "swiss"]
[EventCountry "TUR"]
[SourceTitle "playchess.com"]
[Source "ChessBase"]
[SourceQuality "1"]
[TimeControl "5400+30"]

1. e4 c5 2. Nf3 e6 3. d4 cxd4 4. Nxd4 Nc6 5. Nc3 Qc7 6. Be3 a6 7. Qd2 Nf6 8. f3 Bb4 9. a3 Be7 10. Be2 b5 11. f4 Nxd4 12. Qxd4 Bb7 13. O-O O-O 14. f5 Bd6 15. e5 Bxe5 16. Qh4 Rac8 17. Bd3 Bxh2+ 18. Kh1 Qg3 0-1